Cogmind - Beta 17 @@@ ROGUE MODE // 2026.06.25 @ 21:16:42 Player: bw-k4t Result: Destroyed by G-47 Trooper with Particle Gun Performance ------------- Evolutions (2) 1000 Regions Visited (4) 800 Robots Destroyed (20) 100 Value Destroyed (846) 846 Prototype IDs (1) 20 Alien Tech Used (0) 0 Bonus (200) 200 TOTAL SCORE: 2966 Bonus ------- Pacifist 200 Cogmind --------- Core Integrity 0/550 Matter 300/300 Energy 35/100 System Corruption 12% Temperature Cool (27) Movement Core (50) Location -8/Materials Parts ------- > --- POWER (2) -------- (None) > --- PROPULSION (4) --- (None) > --- UTILITY (3) ------ (None) > --- WEAPON (2) ------- Katana > --- INVENTORY (5) ---- Aluminum Leg Targeting Computer Heavy Particle Gun Katana Katana Peak State ------------ > --- POWER ------------ Light Nuclear Core Light Nuclear Core > --- PROPULSION ------- Light Treads Aluminum Leg Aluminum Leg Aluminum Leg > --- UTILITY ---------- Small Storage Unit Signal Interpreter Targeting Computer > --- WEAPON ----------- Heavy Particle Gun Katana > --- INVENTORY -------- Aluminum Leg Targeting Computer Heavy Particle Gun Heavy Particle Gun Heavy Particle Gun Katana Katana [Rating: 22] Favorites ----------- Power Ion Engine Engine Ion Engine Power Core Light Nuclear Core Propulsion Aluminum Leg Treads Light Treads Leg Aluminum Leg Utility Small Storage Unit Device Heat Sink Storage Small Storage Unit Processor Signal Interpreter Weapon Heavy Particle Gun Energy Gun Heavy Particle Gun Energy Cannon Ion Cannon Ballistic Gun Assault Rifle Slashing Weapon Katana Build | -11 -10 -10 -9 -8 ------- Run | Yrd Mat Min Mat Mat Slots Evolved 4 | . . . 2 2 Power 1 | . . . . 1 Propulsion 2 | . . . 1 1 Utility 1 | . . . 1 . Weapon . | . . . . . Parts Attached 30 | 6 1 . 10 13 Power 5 | 1 . . 2 2 Engine 3 | 1 . . 2 . Core 2 | . . . . 2 Reactor . | . . . . . Propulsion 11 | 2 . . 3 6 Treads 4 | . . . 2 2 Leg 7 | 2 . . 1 4 Wheel . | . . . . . Hover . | . . . . . Flight . | . . . . . Utility 5 | 1 1 . 1 2 Device 1 | . . . 1 . Storage 1 | 1 . . . . Processor 3 | . 1 . . 2 Hackware . | . . . . . Protection . | . . . . . Artifact . | . . . . . Weapon 9 | 2 . . 4 3 Energy Gun 3 | . . . 3 . Energy Cannon 1 | . . . . 1 Ballistic Gun 3 | 2 . . 1 . Ballistic Cannon . | . . . . . Launcher . | . . . . . Special Weapon . | . . . . . Impact Weapon . | . . . . . Slashing Weapon 2 | . . . . 2 Piercing Weapon . | . . . . . Special Melee Weapon . | . . . . . Unidentified Prototypes 1 | . . . 1 . Parts Lost 13 | . . . 2 11 Power 3 | . . . 1 2 Propulsion 5 | . . . 1 4 Utility 4 | . . . . 4 Weapon 1 | . . . . 1 Highest Loss Streak 10 | . . . 1 10 To Critical Strikes . | . . . . . Average Backups 6 | 2 4 6 7 7 Power . | . 1 1 . . Propulsion 2 | 1 2 2 2 1 Utility . | . . . . 1 Weapon 3 | . 1 3 3 4 Tool/Special . | . . . . . Unused Backups 12 | . . . 4 8 Power . | . . . . . Propulsion 1 | . . . . 1 Utility 1 | . . . . 1 Weapon 10 | . . . 4 6 Tool/Special . | . . . . . Average Slot Usage (%) 95 | . 95 100 96 95 Engine 10 | . 14 14 10 9 Core 3 | . . . . 7 Treads 7 | . . . 11 8 Leg 24 | . 28 28 21 25 Device 2 | . . . 8 . Storage 10 | . 14 14 11 8 Processor 13 | . 9 14 11 16 Energy Gun 8 | . . . 10 9 Energy Cannon 2 | . . . . 4 Ballistic Gun 8 | . 28 28 11 . Slashing Weapon 2 | . . . . 4 Peak Build Rating 22 | 6 7 7 17 22 Average Rating 14 | 4 6 7 11 19 On Entrance 7 | . 6 7 7 17 Avg Prop Armor Cover (%) 10 | . . . 10 10 Naked Turns . | . . . . . Heaviest Build 26 | 12 12 12 19 26 Greatest Support 30 | 20 20 20 20 30 Greatest Overweight (x) . | . . . . . Average Overweight (x) . | . . . . . Largest Inventory Capacity 8 | 8 8 8 8 8 Average Capacity 7 | 6 8 8 8 7 Most Carried 8 | 4 6 6 8 8 Average Carried 6 | 2 4 6 7 7 Final Capacity 8 | 8 8 8 8 5 Final Carried 8 | 4 6 6 8 5 Class Distribution -------------------- 66% | Scavenger-Mutant 33% | Mutant Dominant Class ---------------- Mutant | -10/Materials Mutant | -10/Mines Scavenger-Mutant | -9/Materials Scavenger-Mutant | -8/Materials Resources | -11 -10 -10 -9 -8 ----------- Run | Yrd Mat Min Mat Mat Matter Collected 650 | 185 54 . 246 165 Remotely . | . . . . . Salvage Created 887 | . . . 452 435 Parts 44 | . . . 21 23 Haulers Intercepted . | . . . . . Recyclers Shooed 1 | . 1 . . . Parts Field Recycled . | . . . . . Retrieved Matter . | . . . . . Parts Self-Destructed . | . . . . . Prevented . | . . . . . Parts Restored . | . . . . . Kills | -11 -10 -10 -9 -8 ------- Run | Yrd Mat Min Mat Mat Combat Hostiles Destroyed 15 | . . . 7 8 Melee 4 | . . . . 4 Guns 10 | . . . 7 3 Cannons 1 | . . . . 1 Classes Destroyed 6 | . . . 5 1 Worker 2 | . . . 2 . Recycler 1 | . . . 1 . Watcher 2 | . . . 1 1 Grunt 12 | . . . 5 7 Sentry 2 | . . . 2 . Hunter 1 | . . . . 1 Best Kill Streak 6 | . . . 6 3 Combat Bots Only 3 | . . . 3 3 Max Kills in Single Turn 2 | . . . 2 1 Gunslinging . | . . . . . Exploded . | . . . . . Melee 1 | . . . . 1 Uniques/NPCs Destroyed . | . . . . . Combat | -11 -10 -10 -9 -8 -------- Run | Yrd Mat Min Mat Mat Hostile Shots Fired 187 | . 1 . 46 140 Missed 42 | . 1 . 11 30 Hits 145 | . . . 35 110 Melee 4 | . . . . 4 Projectile 141 | . . . 35 106 AOE 4 | . . 4 . . Critical Strikes 6 | . . . 1 5 Damage Taken 2200 | . . 95 443 1662 Core 622 | . . . 60 562 Absorbed by Shields . | . . . . . Core Remaining (%) 95 | 100 . 100 85 . Volleys Fired 74 | . 7 . 27 40 Largest 2 | . 2 . 2 2 Hottest 115 | . 40 . 110 115 Shots Fired 132 | . 14 . 54 64 Gun 108 | . 14 . 54 40 Cannon 24 | . . . . 24 Launcher . | . . . . . Special . | . . . . . Kinetic 43 | . 14 . 29 . Thermal 89 | . . . 25 64 Explosive . | . . . . . Electromagnetic . | . . . . . Robot Hit Streak 11 | . 3 . 11 8 Robot Miss Streak 5 | . 2 . 2 5 Penetration Max . | . . . . . Secondary Targets 1 | . . . 1 . Max Gunslinging Chain 1 | . . . 1 . Shots Hit Robots 84 | . 9 . 40 35 Core Hits 32 | . 1 . 16 15 Critical Kills . | . . . . . Critical Parts Destroyed . | . . . . . Critical Strikes 1 | . . . 1 . Burn 1 | . . . 1 . Melee Attacks 18 | . . . . 18 Impact . | . . . . . Slashing 18 | . . . . 18 Piercing . | . . . . . Sneak Attacks . | . . . . . Combat Hostiles . | . . . . . Follow-up Attacks . | . . . . . Damage Inflicted 1669 | . 98 . 699 872 Guns 1127 | . 88 . 699 340 Cannons 207 | . . . . 207 Explosions . | . . . . . Melee 322 | . . . . 322 Ramming 13 | . 10 . . 3 Kinetic 418 | . 88 . 330 . Thermal 916 | . . . 369 547 Explosive . | . . . . . Electromagnetic . | . . . . . Impact . | . . . . . Slashing 322 | . . . . 322 Piercing . | . . . . . Highest Corruption 4 | . 1 1 . 4 Average Corruption 1 | . 1 1 . 4 Corruption Purged . | . . . . . Corruption Blocked . | . . . . . Overload Shots . | . . . . . Overflow Damage 19 | . . . . 19 Projectiles 19 | . . . . 19 Explosions . | . . . . . Melee . | . . . . . Knockbacks . | . . . . . Impact . | . . . . . Kinetic . | . . . . . Secondary . | . . . . . Self-Inflicted Damage . | . . . . . Shots . | . . . . . Rammed . | . . . . . Targets Rammed 2 | . 1 . . 1 Kicked 2 | . 1 . . 1 Crushed . | . . . . . Highest Temperature 537 | . . . 30 537 Average Temperature 113 | . . . 15 126 Received Heat Transfer 1152 | . . . 225 927 Effects 5 | . . . . 5 Shutdowns 1 | . . . . 1 Energy Bleed 1 | . . . . 1 Matter Decay 1 | . . . . 1 Damage (major) 2 | . . . . 2 Siege Activations . | . . . . . Martial Activations . | . . . . . Shielding Activations . | . . . . . Robots Disrupted . | . . . . . Combat Hostiles . | . . . . . Robots Corrupted . | . . . . . Combat Hostiles . | . . . . . Parts Fried . | . . . . . Impact Corruptions . | . . . . . Robots Melted . | . . . . . Combat Hostiles . | . . . . . Parts Melted 3 | . . . 1 2 Heat Transferred 1813 | . . . 814 999 Parts Sabotaged . | . . . . . Parts Stolen . | . . . . . Parts Stripped . | . . . . . Power Chain Reactions . | . . . . . Alert | -11 -10 -10 -9 -8 ------- Run | Yrd Mat Min Mat Mat Maximum Alert Level . | . . . . . Low Security (%) 100 | 100 100 100 100 100 Level 1 . | . . . . . Level 2 . | . . . . . Level 3 . | . . . . . Level 4 . | . . . . . Level 5 . | . . . . . High Security . | . . . . . Max Security . | . . . . . Peak Influence 109 | . 15 1 61 109 Initial 18 | . . 1 . 18 Average 30 | . . . 22 46 Influence Increases 644 | . 16 . 216 412 Destroy 0b10 Robot/C 300 | . . . 140 160 Destroy 0b10 Robot/NC 25 | . . . 20 5 Destroy Leader 74 | . . . 32 42 Successful Hack 16 | . . . 8 8 Disable Machine 210 | . . . 15 195 Destroy Structure 4 | . 1 . 1 2 Lose Combat Pursuer 15 | . 15 . . . Influence Decreases 617 | . 11 5 171 430 Entered New Map 31 | . . 4 . 27 Time Decay 466 | . 11 1 161 293 Lost Part 120 | . . . 10 110 Squads Dispatched 8 | . 4 . 1 3 Investigation 5 | . 2 . . 3 Extermination . | . . . . . Reinforcement 3 | . 2 . 1 . Assault . | . . . . . Garrison . | . . . . . Intercept . | . . . . . Searches Triggered . | . . . . . Construction Impeded . | . . . . . Haulers Reinforced . | . . . . . Active Scanning Responses . | . . . . . Cargo Convoy Interrupts . | . . . . . Stealth | -11 -10 -10 -9 -8 --------- Run | Yrd Mat Min Mat Mat Distress Signals 8 | . 3 . 2 3 Communications Jammed . | . . . . . Distress Signals . | . . . . . Times Spotted 43 | . 4 2 17 20 Peak Tracking Total 8 | . 4 2 6 8 Tactical Retreats 1 | . 1 . . . Traps | -11 -10 -10 -9 -8 ------- Run | Yrd Mat Min Mat Mat Traps Triggered 1 | . . . . 1 Indirectly . | . . . . . Trap Hack Attempts . | . . . . . Triggered . | . . . . . Disarmed . | . . . . . Reprogrammed . | . . . . . Reused . | . . . . . Traps Extracted . | . . . . . Installed . | . . . . . Triggered . | . . . . . Machines | -11 -10 -10 -9 -8 ---------- Run | Yrd Mat Min Mat Mat Machines Disabled 14 | . . . 1 13 Max in Single Turn 1 | . . . 1 1 Garrison Access 1 | . . . . 1 Machines Repaired . | . . . . . Machines Dismantled . | . . . . . Machines Sabotaged . | . . . . . Overloaded Fab Kills . | . . . . . Hacking | -11 -10 -10 -9 -8 --------- Run | Yrd Mat Min Mat Mat Machines Accessed 8 | . 2 1 2 3 Terminals 7 | . 2 1 2 2 Fabricators . | . . . . . Repair Stations . | . . . . . Recycling Units . | . . . . . Scanalyzers . | . . . . . Garrison Access 1 | . . . . 1 Total Hacks 18 | . 5 2 4 7 Successful 5 | . . 1 1 3 Failed 13 | . 5 1 3 4 Catastrophic 3 | . 3 . . . Database Lockouts . | . . . . . Manual 14 | . 5 . 4 5 Terminals 17 | . 5 2 4 6 Fabricators . | . . . . . Repair Stations . | . . . . . Recycling Units . | . . . . . Scanalyzers . | . . . . . Garrison Access 1 | . . . . 1 Terminal Hacks 3 | . . 1 1 1 Record 1 | . . . . 1 Branch Access Points 1 | . . . 1 . Zone Layout 1 | . . 1 . . Fabricator Hacks . | . . . . . Repair Station Hacks . | . . . . . Recycling Unit Hacks . | . . . . . Scanalyzer . | . . . . . Garrison Access Hacks 1 | . . . . 1 Seal Access 1 | . . . . 1 Unauthorized Hacks 1 | . . . . 1 Terminals 1 | . . . . 1 Assimilate 1 | . . . . 1 Fabricators . | . . . . . Repair Stations . | . . . . . Recycling Units . | . . . . . Scanalyzers . | . . . . . Garrison Access . | . . . . . Data Cores Recovered . | . . . . . Used . | . . . . . Hacking Detections 7 | . 2 1 2 2 Full Trace Events 4 | . 2 . . 2 Feedback Events 1 | . 1 . . . Corruption 1 | . 1 . . . Feedback Blocked . | . . . . . Robot Schematics Acquired . | . . . . . Robots Built . | . . . . . Authchips . | . . . . . Time . | . . . . . Total Robot Build Rating . | . . . . . Part Schematics Acquired . | . . . . . Parts Built . | . . . . . Authchips . | . . . . . Time . | . . . . . Total Part Build Rating . | . . . . . Part Studies Acquired . | . . . . . Parts Repaired . | . . . . . Time . | . . . . . Parts Recycled . | . . . . . Recycled Matter . | . . . . . Retrieved Matter . | . . . . . Retrieved Components . | . . . . . Parts Scanalyzed . | . . . . . Part Schematics Acquired . | . . . . . Parts Damaged . | . . . . . Bothacking | -11 -10 -10 -9 -8 ------------ Run | Yrd Mat Min Mat Mat Used RIF Installer . | . . . . . Robots Hacked . | . . . . . Non-combat . | . . . . . Combat . | . . . . . Robot Hacks Applied . | . . . . . Relay Couplers Released . | . . . . . Fabnet Peak Effective % . | . . . . . Robots Rewired . | . . . . . Allies Hacked . | . . . . . Hacks Repelled . | . . . . . Allies | -11 -10 -10 -9 -8 -------- Run | Yrd Mat Min Mat Mat Total Allies . | . . . . . Largest Group . | . . . . . Highest-Rated Group . | . . . . . Highest-Rated Ally . | . . . . . Total Orders . | . . . . . Ally Attacks . | . . . . . Total Damage . | . . . . . Kills . | . . . . . Allies Corrupted . | . . . . . Allies Melted . | . . . . . Intel | -11 -10 -10 -9 -8 ------- Run | Yrd Mat Min Mat Mat Active Infowar (turns) . | . . . . . Robot Analysis Total . | . . . . . Derelict Logs Recovered . | . . . . . Drone Launches . | . . . . . Drone Recoveries . | . . . . . Exploration | -11 -10 -10 -9 -8 ------------- Run | Yrd Mat Min Mat Mat Turns Passed 1467 | 56 180 50 433 748 Spaces Moved 835 | 38 129 42 230 396 Core 2 | 2 . . . . Treads 149 | . . . 36 113 Legs 684 | 36 129 42 194 283 Wheels . | . . . . . Hover . | . . . . . Flight . | . . . . . Fastest Speed 50 | 50 120 120 120 120 Average Speed 126 | 116 120 120 126 131 Slowest Speed 160 | 120 120 120 160 160 Overloaded Moves . | . . . . . Propulsion Burnouts . | . . . . . Robots Hopped . | . . . . . Potential Cave-ins . | . . . . . Cave-ins Triggered . | . . . . . Exploration Rate (%) 20 | 3 26 17 23 34 Regions Visited 4 Branch Regions 1 Pre-discovered Areas . | . . . . . Known Exits Taken 3 | . 1 1 1 . Unknown Exits Taken 1 | 1 . . . . Scrap Searched . | . . . . . Spaces Dug . | . . . . . Terrain Destroyed 1 | . . . . 1 Melee . | . . . . . Projectile 1 | . . . . 1 AOE . | . . . . . Terrain Rammed . | . . . . . Walls Destroyed . | . . . . . Machines Disabled . | . . . . . Actions | -11 -10 -10 -9 -8 --------- Run | Yrd Mat Min Mat Mat Total 1081 | 47 139 41 319 535 Wait 77 | . . . 33 44 Move 831 | 37 128 41 229 396 Hop . | . . . . . Pick Up 26 | 4 2 . 11 9 Fast Attach 12 | 6 1 . 4 1 Attach 6 | . . . 3 3 Detach . | . . . . . Swap 14 | . . . 3 11 Drop 21 | . . . 9 12 Fire 74 | . 7 . 27 40 Melee 18 | . . . . 18 Ram . | . . . . . Kick 2 | . 1 . . 1 Crush . | . . . . . Escape Stasis . | . . . . . Rewire . | . . . . . Trap . | . . . . . Miscellaneous . | . . . . . Route ------- -11/Scrapyard -10/Materials -10/Mines -9/Materials (discovered 3 exits: *Mat / Min / Sto) -8/Materials History --------- Turn | Location | Event 7 | -11/Scrapyard | Discovered new exit (range 15) 57 | -11/Scrapyard | Entered Materials 212 | -10/Materials | Discovered new exit (range 12) 224 | -10/Materials | Identified exit to Mines 237 | -10/Materials | Entered Mines 260 | -10/Mines | Discovered new exit (range 12) 276 | -10/Mines | Assembled infested the area 281 | -10/Mines | Assisted by a Guerilla fighting off Assembled 285 | -10/Mines | Identified exit to Materials 287 | -10/Mines | Entered Materials 287 | -9/Materials | Evolved 2 slots: Propulsion x1, Utility x1 308 | -9/Materials | Build established: Mutant 567 | -9/Materials | Identified exit to Mines 567 | -9/Materials | Identified exit to Storage 603 | -9/Materials | Discovered new exit (range 3) 676 | -9/Materials | Identified exit to Materials 720 | -9/Materials | Entered another Materials area 720 | -8/Materials | Evolved 2 slots: Power x1, Propulsion x1 786 | -8/Materials | Build established: Scavenger-Mutant 1455 | -8/Materials | Core integrity fell below 50% 1467 | -8/Materials | Core integrity fell below 20% 1468 | -8/Materials | Destroyed by G-47 Trooper with Particle Gun Last Messages --------------- Lgt. Nuclear Core destroyed. Aluminum Leg destroyed. Lgt. Nuclear Core destroyed. G-47 Trooper destroyed. Aluminum Leg destroyed. W-25 Informer sends out distress signal. Sml. Storage Unit destroyed. Critical hit (Burn: +37). Particle Gun melted. G-47 Trooper destroyed. U-05 Engineer lays Concrete. Terminal disabled. U-05 Engineer lays Concrete. Targeting Computer destroyed. System corrupted by crushing effect (+4). Hvy. Particle Gun destroyed. Signal Interpreter destroyed. System corrupted by crushing effect (+5). System corrupted by crushing effect (+3). Knocked back. Map ----- +----------------------------------------------------+ | ???????????????????????????????????????????????? | | ????????????????????????????????????????????#?""" | | ????????????????????????????????????????????# """ | | ????????????????????????????????????????????# """ | | ????????????????????????????????????????????# """ | | ?????????????????????###########????????????# "" | | ?????????????????????# #????????????? | | ?????????????????????# #??????????????? | | ?????????????????????# #?????????########+ | | ?????????????????????# ########### | | ?????????????????????# # | | ?????????????????????# # ####### """ # | | ?????????????# ??????# + #?????# """ # | | ?????????????# ?????# # + ????# "" # | | ?????????????# #########+##### # ???# # | | ?????????????+ # ??# # | | ?????????????# #?""" # "" # | | ?????????????# """ #??"" # """ # | | ?????????????# """ #???" # """ %+ | | ?????????????# """g #?????# [# | | ?????????????# #########g g #?????# # | | ???????????????????????#=* #?????#+####### | | ???????????????????????#%= #???? ??????# | | ???????????????????????#gb T" u #????= ???????# | | ???????????????????????#%!""" #?????????##### | | ???????????????????????#[@[ #?????????# | | ???????????????????????# [ Y #?????????# | | ???????????????????????#########w #?????????# | | ???????????????????????????????? #?????????# # | | ????????????????????????????????? #?????????# ? | | ?????????????????????????????????? #?????????# ?? | | ?????????????????????????????????????????????# ??? | | ?????????????????????????????????????????????#???? | | ?????????????????????????????????????????????????? | | ?????????????????????????????????????????????????? | | ?????????????????????????????????????????????????? | | ?????????????????????????????????????????????????? | | ?????????????????????????????????????????????????? | | ?????????????????????????????????????????????????? | | ?????????????????????????????????????????????????? | | ?????????????????????????????????????????????????? | | ?????????????????????????????????????????????????? | | ?????????????????????????????????????????????????? | | ?????????????????????????????????????????????????? | | ?????????????????????????????????????????????????? | | ?????????????????????????????????????????????????? | | ?????????????????????????????????????????????? ? | | ?????????????????????????????????????????????# # | | ?????????????????????????????????????????????# # | | ?????????????????????????????????????????????# # | +----------------------------------------------------+ Best States ------------- Heat Dissipation 41 Energy Generation 23 Energy Capacity 415 Matter Stores 300 Matter Capacity 300 Sight Range 16 Terrain Scan Density 10 Evasion (%) 55 Targeting Accuracy 5 Recoil Reduction 1 Item Schematics ----------------- None Robot Schematics ------------------ None Fabricated ------------ Nothing Repaired ---------- Nothing Studied --------- None Alien Tech Used ----------------- None Achievements -------------- Ghost 'Em Well Done Challenges ------------ None Game ------ Seed TerrabombNanofilamentsMace Manual? 0 Play Time 00:20:28 Cumulative 3.6 hours Start 2026.06.25 @ 20:59:11 End 2026.06.25 @ 21:16:42 Sessions 1 Manual Loads 0 Difficulty Rogue Special Mode None Game No. 6 Rogue 6 Adventurer 0 Explorer 0 Win Type - Total 0 Types 0/0/0/0/0/0/0/0/0/0 Lore% 4 Gallery% 7 Achievement% 11 Wizard Run 0 Options --------- Layout 1 ASCII 1 Keyboard 0 Movement Mouse Keybinds 0 Fullscreen 1 Font 18/SmallcapsGlow Map View 50x40 Zoom Use 0% Tactical HUD 0 Map Filters NONE Filters NONE Steam 1 RUN: 1b0b9e59-fd46-49df-8acb-0da54a77d2ff